bitfinex/quotes_SOLUSD_20240615
["timestamp","ask_amount","ask_price","bid_price","bid_amount"]
[1718489404709,5.61,144.95,144.89,20.8391]
[1718489405528,20.0,144.98,144.89,15.2291]
[1718489405728,5.61,144.97,144.91,5.61]
[1718489406026,5.61,144.98,144.92,5.61]
[1718489406328,5.61,144.99,144.93,5.61]
[1718489406530,5.61,144.99,144.94,16.4748]
[1718489407820,8.1619,144.99,144.94,16.4748]
[1718489408332,5.61,144.98,144.94,16.4748]
[1718489408901,5.61,144.97,144.94,16.4748]
[1718489409112,5.61,144.96,144.92,6.2927]
[1718489411124,0.17,144.99,144.92,11.9027]
[1718489411307,5.78,144.99,144.93,5.61]
[1718489411500,5.61,144.99,144.93,5.61]
[1718489411941,7.16848656,145.01,144.93,5.61]
[1718489412146,15.3085,145.02,144.95,5.61]
[1718489412448,2.5515,145.01,144.94,5.61]
[1718489412608,8.1617,145.0,144.94,5.61]
[1718489412808,5.61,145.0,144.94,5.61]
[1718489413028,8.1617,145.0,144.94,5.61]
[1718489413407,0.17,145.0,144.94,5.61]
[1718489414532,0.51,145.01,144.94,5.61]
[1718489414725,5.95,145.01,144.96,21.9333]
[1718489415043,7.6538,145.03,144.96,21.9333]
[1718489415245,9.72002663,145.04,144.98,5.61]
[1718489415444,5.61,145.04,144.98,5.61]
[1718489415738,2.5512,145.03,144.98,5.61]
[1718489416333,8.1612,145.03,144.97,11.6818]
[1718489418726,5.61,145.03,144.97,11.6818]
[1718489418949,8.1612,145.03,144.97,11.6818]
[1718489419345,5.61,145.03,144.97,11.6818]
[1718489420359,5.61,145.03,144.98,5.61]
[1718489421832,2.5509,145.05,144.98,5.61]
[1718489422031,8.1607,145.06,145.0,5.61]
[1718489422241,8.1606,145.07,144.98,16.3233]
[1718489422442,8.1606,145.07,145.01,5.61]
[1718489422860,20.9131,145.07,145.01,5.61]
[1718489423165,15.3039,145.06,145.01,5.61]
[1718489423462,20.9139,145.06,145.0,5.61]
[1718489423628,10.202,145.07,144.98,16.3233]
[1718489423629,5.61,145.03,144.98,16.3233]
[1718489423967,5.61,145.03,144.98,21.9333]
[1718489424329,0.17,145.04,144.99,5.61]
[1718489425977,0.17,145.05,144.99,5.61]
[1718489426136,5.78,145.06,145.0,5.61]
[1718489426961,8.3306,145.06,145.0,5.61]
[1718489427729,21.0839,145.06,145.0,5.61]
[1718489428157,31.2865,145.06,145.0,5.61]
[1718489428454,20.9149,145.05,144.98,16.3233]
[1718489428642,13.2624,145.05,144.99,5.61]
[1718489429147,8.1608,145.05,144.99,5.61]
[1718489430963,2.5508,145.05,145.0,5.61]
[1718489432385,7.6525,145.05,145.0,5.61]
[1718489433252,15.305,145.05,145.0,5.61]
[1718489435159,2.551,145.04,145.0,5.61]
[1718489435453,2.551,145.04,144.99,5.61]
[1718489436169,31.1184,145.05,144.99,5.61]
[1718489436476,25.5084,145.05,145.0,5.61]
[1718489438156,2.551,145.04,145.0,5.61]
[1718489441191,7.653,145.04,145.0,5.61]
[1718489442366,0.17,145.06,145.0,5.61]
[1718489442679,2.551,145.04,144.98,16.3233]
[1718489442888,2.551,145.04,145.0,5.61]
[1718489443088,7.653,145.04,145.0,5.61]
[1718489443574,15.3061,145.04,145.0,5.61]
[1718489443885,2.5511,145.03,145.0,5.61]
[1718489444085,2.5517,145.0,144.93,21.7823]
[1718489444287,2.5516,145.01,144.97,5.61]
[1718489444987,12.7587,145.0,144.97,5.61]
[1718489445187,7.6553,145.0,144.93,21.7823]
[1718489445392,2.5518,145.0,144.96,5.61]
[1718489445707,7.6553,145.0,144.96,5.61]
[1718489446078,31.1264,145.01,144.96,5.61]
[1718489446399,31.1265,145.01,144.93,21.7823]
[1718489446607,2.5517,145.0,144.96,5.61]
[1718489447185,25.5165,145.01,144.96,5.61]
[1718489447386,2.5517,145.0,144.95,5.61]
[1718489448309,8.1617,145.0,144.95,5.61]
[1718489449097,5.61,145.0,144.95,5.61]
[1718489449293,25.5192,144.99,144.93,15.6118]
[1718489449496,5.61,144.98,144.92,5.61]
[1718489449715,7.8254,145.0,144.93,5.61]
[1718489449914,8.3318,145.0,144.94,5.61]
[1718489450385,13.4352,145.0,144.94,5.61]
[1718489451417,21.0904,145.0,144.94,5.61]
[1718489452113,13.8949,145.01,144.96,5.61]
[1718489452284,2.5519,144.99,144.95,5.61]
[1718489452486,31.298,145.0,144.95,5.61]
[1718489452700,2.5519,144.99,144.94,5.61]
[1718489453014,13.2657,144.99,144.94,5.61]
[1718489453385,8.1619,144.99,144.94,5.61]
[1718489453582,2.5522,144.97,144.89,21.5822]
[1718489453805,28.5794,144.98,144.92,5.61]
[1718489453806,8.1621,144.98,144.92,5.61]
[1718489454016,5.61,144.98,144.93,5.61]
[1718489454493,31.1296,144.99,144.93,5.61]
[1718489454999,2.552,144.98,144.93,5.61]
[1718489456899,13.2661,144.98,144.93,5.61]
[1718489457811,8.162,144.98,144.93,5.61]
[1718489458806,8.162,144.98,144.92,5.61]
[1718489459133,5.61,144.98,144.92,5.61]
[1718489461834,8.162,144.98,144.92,5.61]
[1718489462216,2.552,144.98,144.92,5.61]
[1718489462709,8.162,144.98,144.92,5.61]
[1718489463316,5.61,144.98,144.92,5.61]
[1718489464165,8.1621,144.98,144.92,5.61]
[1718489465286,17.2499,145.0,144.95,5.61]
[1718489465287,16.5699,145.0,144.95,5.61]
[1718489465865,19.1216,145.0,144.95,5.61]
[1718489466040,24.7316,145.0,144.95,5.61]
[1718489466442,24.7316,145.0,144.94,5.61]
[1718489466851,22.1799,145.0,144.94,5.61]
[1718489467357,22.1799,145.0,144.95,5.61]
[1718489467786,16.5699,145.0,144.95,5.61]
[1718489468137,19.1216,145.0,144.95,5.61]
[1718489468736,16.5699,145.0,144.95,5.61]
[1718489468944,16.5699,145.0,144.9,22.61]
[1718489468945,6.2401,145.01,144.97,5.61]
[1718489471577,13.8947,145.01,144.97,5.61]
[1718489471758,31.7556,145.01,144.96,5.61]
[1718489472357,37.3657,145.01,144.95,5.61]
[1718489472755,31.1272,145.0,144.95,5.61]
[1718489472976,13.2651,145.0,144.95,5.61]
[1718489473154,23.4754,144.98,144.89,27.82151072]
[1718489473480,8.1622,144.97,144.91,5.61]
[1718489473658,5.61,144.97,144.92,20.0]
[1718489474078,31.1318,144.98,144.92,25.61]
[1718489474585,5.61,144.98,144.92,25.61]
[1718489475295,5.61,144.98,144.93,5.61]
[1718489479179,5.61,144.98,144.92,20.0]
[1718489479368,5.61,144.98,144.92,5.61]
[1718489481379,5.61,144.96,144.9,20.0]
[1718489481561,15.4838,144.97,144.89,15.3704]
[1718489481562,5.61,144.95,144.89,20.9804]
[1718489484079,5.61,144.96,144.9,5.61]
[1718489486280,5.61,144.97,144.89,15.3704]
[1718489486488,5.61,144.97,144.91,5.61]
[1718489489285,5.61,144.96,144.91,5.61]
[1718489496000,5.1052,144.95,144.87,0.3500918]
[1718489496174,8.1628,144.94,144.88,5.61]
[1718489496978,5.61,144.94,144.88,5.61]
[1718489497178,8.1628,144.94,144.88,5.61]
[1718489497902,5.61,144.94,144.88,5.61]
[1718489499212,5.61,144.94,144.87,0.3500918]
[1718489499405,5.61,144.94,144.89,5.61]
[1718489500386,5.78,144.95,144.89,5.61]
[1718489501482,8.3326,144.95,144.87,0.3500918]
[1718489501687,5.61,144.94,144.89,5.61]
[1718489505514,6.385,144.96,144.9,5.61]
[1718489505706,5.61,144.96,144.9,5.61]
[1718489506411,5.61,144.96,144.91,5.61]
[1718489509880,15.1447,144.98,144.91,5.61]
[1718489510089,15.1447,144.98,144.93,5.61]
[1718489510910,17.6967,144.98,144.93,5.61]
[1718489511115,23.3067,144.98,144.92,5.61]
[1718489511681,20.7547,144.98,144.92,5.61]
[1718489511923,20.7547,144.98,144.93,5.61]
[1718489512094,15.1447,144.98,144.93,5.61]
[1718489512292,20.7547,144.98,144.93,5.61]
[1718489515396,20.7547,144.98,144.9,16.0672]
[1718489515607,23.3067,144.98,144.92,5.61]
[1718489516491,20.7547,144.98,144.92,5.61]
[1718489520811,20.7547,144.98,144.93,5.61]
[1718489521425,20.7547,144.98,144.9,16.0672]
[1718489521628,20.7547,144.98,144.93,5.61]
[1718489522421,23.3067,144.98,144.93,5.61]
[1718489522601,23.3067,144.98,144.92,5.61]
[1718489523324,20.7547,144.98,144.92,5.61]
[1718489523820,20.7547,144.98,144.93,5.61]
[1718489526320,15.1447,144.98,144.93,5.61]
[1718489528832,17.6967,144.98,144.93,5.61]
[1718489529725,17.6967,144.98,144.9,21.6772]
[1718489529931,17.6967,144.98,144.93,5.61]
[1718489530113,2.5522,144.97,144.93,5.61]
[1718489530320,13.2667,144.97,144.92,5.61]
[1718489531317,8.1622,144.97,144.92,5.61]
[1718489531538,5.61,144.97,144.92,5.61]
[1718489532635,28.4112,144.98,144.92,5.61]
[1718489533302,20.7547,144.98,144.92,5.61]
[1718489533633,23.3067,144.98,144.92,5.61]
[1718489533820,20.7547,144.98,144.93,5.61]
[1718489534021,23.3068,144.98,144.93,5.61]
[1718489534235,20.7547,144.98,144.93,5.61]
[1718489535438,23.3067,144.98,144.93,5.61]
[1718489539136,23.3067,144.98,144.92,5.61]
[1718489539756,28.4108,144.98,144.92,5.61]
[1718489540438,23.3067,144.98,144.92,5.61]
[1718489540923,20.7547,144.98,144.92,5.61]
[1718489542860,23.3067,144.98,144.92,5.61]
[1718489544828,28.4108,144.98,144.92,5.61]
[1718489545859,23.3067,144.98,144.92,5.61]
[1718489548263,23.3067,144.98,144.91,20.0]
[1718489548447,8.5022,144.97,144.88,20.0]
[1718489548621,27.7912,144.94,144.88,5.61]
[1718489548819,22.1812,144.94,144.88,5.61]
[1718489549046,5.61,144.93,144.88,5.61]
[1718489549351,27.7912,144.94,144.88,5.61]
[1718489552020,27.7912,144.94,144.87,0.3500918]
[1718489552021,21.1342,144.91,144.87,0.3500918]
[1718489552224,15.5242,144.91,144.87,0.3500918]
[1718489552458,15.5242,144.91,144.87,5.9600918]
[1718489552632,15.5242,144.91,144.88,5.61]
[1718489553930,15.5242,144.91,144.87,0.3500918]
[1718489554145,15.5242,144.91,144.87,5.9600918]
[1718489554462,15.5242,144.91,144.87,0.3500918]
[1718489555945,21.1342,144.91,144.87,0.3500918]
[1718489566377,15.5242,144.91,144.87,0.3500918]
[1718489566760,21.1342,144.91,144.87,0.3500918]
[1718489567183,15.5242,144.91,144.87,0.3500918]
[1718489567391,6.2633,144.94,144.88,5.61]
[1718489567565,11.8733,144.94,144.88,5.61]
[1718489569071,14.426,144.94,144.88,5.61]
[1718489569908,19.5315,144.94,144.88,5.61]
[1718489570608,2.5533,144.91,144.87,0.3500918]
[1718489570786,13.269,144.93,144.87,5.9600918]
[1718489571308,5.61,144.93,144.87,5.9600918]
[1718489572280,8.1629,144.93,144.87,5.9600918]
[1718489572607,5.61,144.93,144.87,5.9600918]
[1718489572929,8.1629,144.93,144.87,5.9600918]
[1718489573088,5.61,144.91,144.87,0.3500918]
[1718489575400,30.8623,144.91,144.87,0.3500918]
[1718489575586,5.61,144.89,144.87,0.3500918]
[1718489575786,5.61,144.88,144.87,0.3500918]
[1718489578410,5.61,144.89,144.87,0.3500918]
[1718489582394,5.61,144.9,144.87,0.3500918]
[1718489582614,15.5421,144.91,144.87,0.3500918]
[1718489582790,5.61,144.92,144.87,0.3500918]
[1718489583118,5.61,144.92,144.87,5.9600918]
[1718489583720,5.61,144.92,144.87,0.3500918]
[1718489588127,5.61,144.92,144.87,5.9600918]
[1718489589236,5.61,144.92,144.87,0.3500918]
[1718489589400,5.61,144.92,144.87,5.9600918]
[1718489590221,8.1631,144.92,144.87,5.9600918]
[1718489590438,8.1631,144.92,144.87,0.3500918]
[1718489591628,14.0919,144.94,144.87,5.9600918]
[1718489591839,5.61,144.93,144.87,5.9600918]
[1718489592541,5.61,144.93,144.88,5.61]
[1718489593035,8.1629,144.93,144.88,5.61]
[1718489594436,20.9276,144.93,144.88,5.61]
[1718489594745,2.5531,144.92,144.87,5.9600918]
[1718489595450,13.2693,144.92,144.87,0.3500918]
[1718489596229,18.0439,144.91,144.87,0.3500918]
[1718489596549,5.61,144.9,144.87,0.3500918]
[1718489597423,8.3334,144.91,144.87,0.3500918]
[1718489597631,13.44,144.91,144.87,0.3500918]
[1718489599245,8.3334,144.91,144.87,0.3500918]
[1718489599424,5.61,144.91,144.87,0.3500918]
[1718489601009,25.26431849,144.95,144.87,0.3500918]
[1718489601213,25.26431849,144.95,144.87,5.9600918]
[1718489601214,38.02731849,144.95,144.87,5.9600918]
[1718489601450,5.61,144.93,144.88,5.61]
[1718489601631,5.61,144.94,144.88,5.61]
[1718489602235,5.61,144.93,144.87,0.3500918]
[1718489602438,2.5528,144.94,144.87,0.3500918]
[1718489602741,15.3167,144.94,144.87,0.3500918]
[1718489602961,5.61,144.93,144.87,5.9600918]
[1718489606439,7.16961849,144.95,144.89,5.61]
[1718489606616,5.61,144.94,144.88,20.0]
[1718489606830,5.61,144.93,144.88,5.61]
[1718489607057,5.61,144.93,144.87,5.9600918]
[1718489607327,5.61,144.93,144.88,20.0]
[1718489607738,30.14321849,144.95,144.88,20.0]
[1718489607739,7.16961849,144.95,144.88,20.0]
[1718489607939,7.16961849,144.95,144.87,20.3500918]
[1718489607940,5.61,144.91,144.87,20.3500918]
[1718489608558,5.61,144.91,144.87,0.3500918]
[1718489610042,5.61,144.92,144.87,0.3500918]
[1718489615644,5.61,144.94,144.89,5.61]
[1718489615967,8.1627,144.94,144.89,5.61]
[1718489616463,8.1627,144.94,144.88,5.61]
[1718489616845,5.61,144.94,144.88,5.61]
[1718489617668,8.1627,144.94,144.88,5.61]
[1718489618065,5.61,144.93,144.88,5.61]
[1718489624582,5.61,144.94,144.88,5.61]
[1718489625457,5.61,144.94,144.89,5.61]
[1718489625978,7.16961849,144.95,144.89,5.61]
[1718489626174,7.16961849,144.95,144.9,5.61]
[1718489626488,8.1622,144.97,144.91,5.61]
[1718489626688,7.6566,144.98,144.91,5.61]
[1718489626895,13.2664,144.98,144.92,5.61]
[1718489627396,28.5788,144.98,144.92,5.61]
[1718489627702,31.131,144.98,144.92,5.61]
[1718489627874,2.5522,144.97,144.92,5.61]
[1718489628197,2.5522,144.97,144.88,15.4638]
[1718489628399,2.5522,144.97,144.92,5.61]
[1718489628888,7.6567,144.97,144.92,5.61]
[1718489629089,13.2668,144.97,144.88,15.4638]
[1718489629308,13.2668,144.97,144.91,5.61]
[1718489629972,8.1623,144.97,144.91,5.61]
[1718489633014,2.5525,144.96,144.91,5.61]
[1718489633305,8.1625,144.96,144.91,5.61]
[1718489633805,5.61,144.96,144.91,5.61]
[1718489636201,2.5521,144.98,144.91,5.61]
[1718489636405,5.61,144.96,144.91,5.61]
[1718489638006,8.1622,144.97,144.91,5.61]
[1718489640100,13.2667,144.97,144.91,5.61]
[1718489640404,8.1624,144.96,144.9,5.61]
[1718489640606,8.1624,144.96,144.91,20.0]
[1718489641911,5.61,144.96,144.91,20.0]
[1718489643805,22.96734664,144.99,144.91,20.0]
[1718489644015,12.78154664,144.99,144.93,5.61]
[1718489644213,5.61,144.99,144.93,5.61]
[1718489645303,7.6551,145.0,144.93,5.61]
[1718489645485,5.61,144.99,144.93,5.61]
[1718489645987,5.61,144.97,144.91,5.61]
[1718489646180,5.61,144.97,144.92,20.0]
[1718489647005,5.61,144.98,144.92,25.61]
[1718489647513,13.2657,144.99,144.93,5.61]
[1718489647716,5.61,144.98,144.92,25.61]
[1718489648381,5.61,144.97,144.92,25.61]
[1718489649089,5.61,144.98,144.92,25.61]
[1718489649510,8.162,144.98,144.92,20.0]
[1718489649687,8.162,144.98,144.92,25.61]
[1718489650416,8.3323,144.97,144.92,20.0]
[1718489650717,8.3323,144.97,144.89,5.61]
[1718489650718,5.61,144.95,144.89,5.61]
[1718489651012,5.61,144.95,144.9,20.0]
[1718489651216,5.61,144.96,144.9,20.0]
[1718489652794,5.61,144.96,144.9,25.61]
[1718489658501,5.95,144.97,144.91,5.61]
[1718489659538,23.40229661,144.99,144.9,20.0]
[1718489659836,0.17,144.98,144.93,5.61]
[1718489660820,5.95,144.99,144.93,5.61]
[1718489661822,8.5019,144.99,144.93,5.61]
[1718489662024,7.6547,145.01,144.94,5.61]
[1718489662214,5.61,145.0,144.95,5.61]
[1718489662429,8.1617,145.0,144.94,5.61]
[1718489662728,13.2651,145.0,144.94,5.61]
[1718489663054,5.61,144.99,144.94,5.61]
[1718489663236,5.61,144.98,144.93,20.8384]
[1718489664304,2.5517,145.0,144.93,20.8384]
[1718489664509,5.61,145.0,144.95,5.61]
[1718489666339,8.1617,145.0,144.95,5.61]
[1718489666623,2.5517,145.0,144.95,5.61]
[1718489666837,8.1617,145.0,144.95,5.61]
[1718489668441,5.61,145.0,144.95,5.61]
[1718489670950,13.2651,145.0,144.93,15.2284]
[1718489671156,5.61,144.99,144.93,15.2284]
[1718489677754,2.5517,145.0,144.93,15.2284]
[1718489677926,5.61,145.0,144.93,15.2284]
[1718489678630,5.61,145.01,144.96,5.61]
[1718489679137,8.1614,145.02,144.96,5.61]
[1718489679337,2.5514,145.02,144.96,5.61]
[1718489679545,8.1614,145.02,144.96,5.61]
[1718489679747,36.3009,145.03,144.96,5.61]
[1718489679923,5.61,145.02,144.96,5.61]
[1718489680530,8.1613,145.02,144.96,5.61]
[1718489682053,13.2641,145.02,144.96,5.61]
[1718489682235,2.5515,145.01,144.96,5.61]
[1718489684750,20.9186,145.02,144.96,5.61]
[1718489684962,31.1242,145.02,144.96,5.61]
[1718489686859,2.5515,145.01,144.96,5.61]
[1718489687560,31.1242,145.02,144.96,5.61]
[1718489687856,2.5515,145.01,144.96,5.61]
[1718489688153,28.5727,145.02,144.93,15.2284]
[1718489688359,28.5727,145.02,144.96,5.61]
[1718489688555,2.5515,145.01,144.96,5.61]
[1718489690157,7.6546,145.01,144.96,5.61]
[1718489690362,2.5515,145.01,144.96,5.61]
[1718489692859,7.6546,145.01,144.96,5.61]
[1718489695864,7.6546,145.01,144.93,15.2284]
[1718489695865,22.9641,145.01,144.93,15.2284]
[1718489696164,15.3094,145.01,144.96,5.61]
[1718489696368,25.5156,145.01,144.96,5.61]
[1718489696743,7.6547,145.01,144.96,5.61]
[1718489697158,2.5516,145.01,144.96,5.61]
[1718489697356,7.6547,145.01,144.96,5.61]
[1718489698560,2.5519,144.99,144.93,15.2284]
[1718489698766,17.8613,145.01,144.93,15.2284]
[1718489699071,25.5161,145.01,144.95,5.61]
[1718489699773,7.6548,145.01,144.95,5.61]
[1718489700769,2.5516,145.01,144.95,5.61]
[1718489701878,7.6547,145.01,144.95,5.61]
[1718489702276,7.6551,145.0,144.95,5.61]
[1718489702489,25.5174,145.0,144.95,5.61]
[1718489702651,2.5518,145.0,144.95,5.61]
[1718489703258,7.6553,145.0,144.95,5.61]
[1718489703588,5.61,144.98,144.93,15.2284]
[1718489703752,8.162,144.98,144.93,15.2284]
[1718489704379,5.61,144.98,144.93,15.2284]
[1718489705464,8.162,144.99,144.93,20.8384]
[1718489705686,5.61,144.98,144.93,20.8384]
[1718489708489,5.61,144.97,144.93,15.2284]
[1718489710271,5.61,144.97,144.91,5.61]
[1718489710475,5.61,144.97,144.92,5.61]
[1718489710674,5.61,144.97,144.9,16.5582]
[1718489710883,5.61,144.97,144.92,5.61]
[1718489716988,29.21260753,145.01,144.9,16.5582]
[1718489716989,28.87260753,145.01,144.9,16.5582]
[1718489717290,37.03420753,145.01,144.95,5.61]
[1718489717473,29.8374,145.01,144.95,5.61]
[1718489718296,34.9405,145.01,144.95,5.61]
[1718489718474,52.8014,145.01,144.95,5.61]
[1718489718676,22.6791,145.01,144.95,5.61]
[1718489719171,35.9438,145.01,144.95,5.61]
[1718489719371,13.2653,145.0,144.95,5.61]
[1718489719792,8.1617,145.0,144.95,5.61]
[1718489720387,2.5517,145.0,144.95,5.61]
[1718489720574,2.5519,144.99,144.91,0.17]
[1718489720800,2.5519,144.99,144.91,20.0]
[1718489722211,7.6557,144.99,144.91,20.0]
[1718489722811,15.3114,144.99,144.91,20.0]
[1718489722993,7.6557,144.99,144.91,20.0]
[1718489724905,15.3114,144.99,144.91,20.0]
[1718489725400,13.2653,145.0,144.91,20.0]
[1718489725614,22.6793,145.01,144.96,5.61]
[1718489725811,15.3095,145.01,144.96,5.61]
[1718489726181,2.5517,145.0,144.96,5.61]
[1718489727193,22.964,145.01,144.96,5.61]
[1718489727489,7.6557,144.99,144.95,5.61]
[1718489727683,2.5519,144.99,144.95,5.61]
[1718489728311,2.5519,144.99,144.94,5.61]
[1718489729603,31.1276,145.0,144.94,5.61]
[1718489730407,8.1618,145.0,144.94,5.61]
[1718489731408,5.61,145.0,144.94,5.61]
[1718489732513,8.1617,145.01,144.95,5.61]
[1718489732715,31.2943,145.02,144.96,5.61]
[1718489732918,13.4344,145.02,144.96,5.61]
[1718489733813,2.5515,145.01,144.96,5.61]
[1718489734319,8.1615,145.01,144.95,5.61]
[1718489734635,2.5517,145.0,144.92,6.0004]
[1718489734792,2.5517,145.0,144.95,5.61]
[1718489735703,31.1259,145.01,144.95,5.61]
[1718489737529,11.7695,144.99,144.91,20.0]
[1718489737827,5.61,144.97,144.91,25.61]
[1718489737993,5.61,144.96,144.87,6.9238918]
[1718489738192,5.61,144.95,144.89,5.61]
[1718489738401,5.61,144.96,144.91,5.61]
[1718489738628,8.1623,144.97,144.91,5.61]
[1718489738834,5.61,144.97,144.91,5.61]
[1718489739835,3.2322,144.98,144.92,5.61]
[1718489740127,13.6063,144.98,144.92,5.61]
[1718489740495,8.5022,144.98,144.92,5.61]
[1718489740990,21.2626,144.98,144.92,5.61]
[1718489741309,31.4709,144.98,144.92,5.61]
[1718489741822,21.2626,144.98,144.92,5.61]
[1718489742348,2.5522,144.97,144.92,5.61]
[1718489743352,7.6567,144.97,144.92,5.61]
[1718489744647,25.5225,144.97,144.92,5.61]
[1718489744824,25.5227,144.97,144.92,5.61]
[1718489745454,6.6657,144.99,144.88,0.17]
[1718489745717,12.2757,144.99,144.88,20.0]
[1718489745843,22.9719,144.96,144.92,5.61]
[1718489746045,7.6573,144.96,144.92,5.61]
[1718489746359,22.975,144.94,144.88,20.0]
[1718489746545,28.585,144.94,144.88,5.61]
[1718489746750,28.585,144.94,144.89,20.0]
[1718489747046,13.2696,144.92,144.87,0.3500918]
[1718489747422,5.61,144.92,144.87,0.3500918]
[1718489747853,5.61,144.91,144.87,0.3500918]
[1718489748227,5.61,144.92,144.87,0.3500918]
[1718489748427,14.1484,144.93,144.87,0.3500918]
[1718489748428,27.4172,144.93,144.87,0.3500918]
[1718489748644,13.2695,144.92,144.87,0.3500918]
[1718489748952,8.1632,144.92,144.87,0.3500918]
[1718489749153,5.61,144.92,144.87,0.3500918]
[1718489749321,8.1631,144.92,144.87,0.3500918]
[1718489749732,28.5882,144.92,144.87,0.3500918]
[1718489749959,5.61,144.91,144.87,0.3500918]
[1718489751063,7.6595,144.92,144.87,0.3500918]
[1718489751235,5.61,144.91,144.87,0.3500918]
[1718489754363,5.61,144.9,144.87,0.3500918]
[1718489754533,0.34,144.92,144.87,0.3500918]
[1718489754534,5.61,144.89,144.87,0.3500918]
[1718489758356,5.61,144.88,144.87,0.3500918]
[1718489761848,5.78,144.88,144.87,0.3500918]
[1718489762082,6.29,144.88,144.87,0.3500918]
[1718489766848,8.8438,144.88,144.87,0.3500918]
[1718489768260,6.29,144.88,144.87,0.3500918]
[1718489768573,0.68,144.88,144.87,0.3500918]
[1718489769151,6.29,144.88,144.87,0.3500918]
[1718489775256,8.8438,144.88,144.87,0.3500918]
[1718489776367,13.9514,144.88,144.87,0.3500918]
[1718489776983,8.8438,144.88,144.87,0.3500918]
[1718489778584,13.9514,144.88,144.87,0.3500918]
[1718489780708,8.8438,144.88,144.87,0.3500918]
[1718489781804,31.8282,144.88,144.87,0.3500918]
[1718489782399,39.01042066,144.88,144.87,0.3500918]
[1718489784209,15.3264,144.85,144.78,15.8859]
[1718489784384,5.61,144.83,144.78,15.8859]
[1718489784567,5.61,144.82,144.78,15.8859]
[1718489786695,5.61,144.83,144.78,15.8859]
[1718489787680,0.17,144.82,144.78,15.8859]
[1718489788015,0.34,144.82,144.75,5.61]
[1718489788187,5.61,144.81,144.75,5.61]
[1718489788581,5.78,144.8,144.74,15.5484]
[1718489788798,5.78,144.8,144.75,20.0]
[1718489789106,5.78,144.81,144.75,20.0]
[1718489789287,5.61,144.81,144.75,25.61]
[1718489789684,15.6174,144.85,144.75,20.0]
[1718489790009,5.61,144.86,144.77,22.5447]
[1718489790207,5.61,144.86,144.78,20.0]
[1718489790418,5.61,144.86,144.8,5.61]
[1718489791218,0.17,144.85,144.8,5.61]
[1718489791780,5.78,144.85,144.8,5.61]
[1718489792981,5.78,144.85,144.78,20.0]
[1718489793388,0.17,144.85,144.78,20.0]
[1718489794506,13.443,144.85,144.78,20.0]
[1718489795085,5.95,144.84,144.78,25.61]
[1718489795685,5.61,144.84,144.79,5.61]
[1718489796118,5.61,144.83,144.78,20.0]